bitfinex/quotes_BTCUSD_20220109
["timestamp","ask_amount","ask_price","bid_price","bid_amount"]
[1641745587423,0.00441001,41739.0,41734.0,0.9509]
[1641745587626,0.00441001,41739.0,41736.0,0.11937884]
[1641745587823,0.00441001,41739.0,41737.0,0.048]
[1641745588023,0.00441001,41739.0,41737.0,0.0976]
[1641745588424,0.00441001,41739.0,41737.0,0.0972]
[1641745588825,0.00441001,41739.0,41737.0,0.1602]
[1641745589424,0.00441001,41739.0,41738.0,0.25813615]
[1641745589624,0.00441001,41739.0,41738.0,0.048]
[1641745590670,0.00441001,41739.0,41738.0,0.0476]
[1641745590877,0.00441001,41739.0,41738.0,0.1092]
[1641745592073,0.00441001,41739.0,41738.0,0.0472]
[1641745592675,0.24296912,41739.0,41738.0,0.0472]
[1641745592873,0.24296912,41739.0,41738.0,0.0772]
[1641745593480,0.42034446,41740.0,41738.0,0.0772]
[1641745593676,0.00041001,41740.0,41738.0,0.0772]
[1641745594075,0.00041001,41740.0,41738.0,0.0472]
[1641745594723,0.00041001,41740.0,41738.0,0.1681]
[1641745595323,0.32603986,41743.0,41738.0,0.1681]
[1641745595727,0.32603986,41743.0,41738.0,0.1677]
[1641745595925,0.32603986,41743.0,41738.0,0.16757958]
[1641745596226,0.00021112,41741.0,41738.0,0.10617958]
[1641745596424,0.00021112,41741.0,41738.0,0.10577958]
[1641745596827,0.00021112,41741.0,41738.0,0.15477958]
[1641745597024,0.00010628,41743.0,41738.0,0.15477958]
[1641745598175,0.00010628,41743.0,41738.0,0.10577958]
[1641745598779,0.00010628,41743.0,41738.0,0.15477958]
[1641745599679,0.00010628,41743.0,41738.0,0.15437958]
[1641745600080,0.00031733,41743.0,41738.0,0.10537958]
[1641745600282,0.00021105,41743.0,41738.0,0.10537958]
[1641745600883,0.00021105,41743.0,41740.0,0.00025119]
[1641745601079,0.00021105,41743.0,41741.0,0.048]
[1641745601281,0.06011502,41743.0,41741.0,0.048]
[1641745601780,0.03511502,41743.0,41741.0,0.048]
[1641745602042,0.31420197,41743.0,41741.0,0.048]
[1641745602238,0.31398895,41743.0,41741.0,0.048]
[1641745602738,0.31398895,41743.0,41741.0,0.076]
[1641745603455,0.31398895,41743.0,41741.0,0.028]
[1641745603641,0.41398895,41743.0,41741.0,0.028]
[1641745603841,1.48865124,41742.0,41741.0,0.028]
[1641745604142,1.48865124,41742.0,41740.0,0.00025119]
[1641745604340,1.46358692,41741.0,41740.0,0.00025119]
[1641745604543,1.56358692,41741.0,41740.0,0.00025119]
[1641745604740,1.46358692,41741.0,41740.0,0.00025119]
[1641745605540,0.01227624,41742.0,41740.0,0.00025119]
[1641745605774,0.01227624,41742.0,41737.0,0.00044802]
[1641745605975,0.00127624,41742.0,41737.0,0.00044802]
[1641745606175,0.059909,41740.0,41737.0,0.00044802]
[1641745606374,0.23849567,41739.0,41737.0,0.00044802]
[1641745607876,0.23849567,41739.0,41737.0,0.00025119]
[1641745608675,0.059909,41740.0,41737.0,0.00025119]
[1641745608877,0.01,41739.0,41737.0,0.01525119]
[1641745610130,0.37409821,41743.0,41737.0,0.00025119]
[1641745610732,0.37409821,41743.0,41736.0,0.04844934]
[1641745610932,0.47782041,41746.0,41736.0,0.04844934]
[1641745611136,0.00020726,41743.0,41737.0,0.24556464]
[1641745611337,0.00020726,41743.0,41738.0,0.048]
[1641745611633,0.00020726,41743.0,41739.0,0.00129322]
[1641745611834,0.00020726,41743.0,41740.0,2.01772216]
[1641745612237,0.00716775,41746.0,41740.0,2.01772216]
[1641745612435,0.00716775,41746.0,41743.0,0.11976568]
[1641745612636,0.00716775,41746.0,41744.0,0.048]
[1641745613038,0.00716775,41746.0,41744.0,0.0476]
[1641745613282,0.00716775,41746.0,41744.0,0.0472]
[1641745613482,0.00716775,41746.0,41745.0,0.00084746]
[1641745613682,0.00716775,41746.0,41745.0,0.04884746]
[1641745613884,0.00716775,41746.0,41745.0,0.04880658]
[1641745614082,0.00716775,41746.0,41745.0,0.04840658]
[1641745614282,0.00716775,41746.0,41745.0,0.04800658]
[1641745614486,0.00716775,41746.0,41745.0,0.107883]
[1641745614885,0.00716775,41746.0,41745.0,0.183483]
[1641745615082,0.00716775,41746.0,41745.0,0.183083]
[1641745615283,0.00716775,41746.0,41745.0,0.93585094]
[1641745615485,0.00716775,41746.0,41745.0,0.48585094]
[1641745615683,0.00716775,41746.0,41745.0,0.332283]
[1641745615883,0.00716775,41746.0,41745.0,0.33253204]
[1641745616086,0.00716775,41746.0,41745.0,0.25653204]
[1641745616924,0.00216775,41746.0,41745.0,0.19153204]
[1641745617727,0.00216775,41746.0,41745.0,0.14193204]
[1641745617926,0.00216775,41746.0,41745.0,0.14153204]
[1641745618128,0.00216775,41746.0,41745.0,0.10653204]
[1641745618727,0.00216775,41746.0,41745.0,0.15653204]
[1641745618927,0.00216775,41746.0,41745.0,0.18853204]
[1641745619327,0.00216775,41746.0,41745.0,0.48853204]
[1641745619629,0.00216775,41746.0,41745.0,0.28853204]
[1641745620230,0.00216775,41746.0,41745.0,0.30653204]
[1641745620429,0.44532787,41747.0,41745.0,0.30653204]
[1641745620979,0.44532787,41747.0,41745.0,0.23453204]
[1641745621179,0.44532787,41747.0,41745.0,0.33453204]
[1641745621386,0.40831673,41756.0,41751.0,0.42293763]
[1641745621387,0.14329916,41756.0,41751.0,0.42293763]
[1641745621580,0.14329916,41756.0,41755.0,0.60154218]
[1641745621779,0.00441001,41759.0,41755.0,0.73133]
[1641745621978,0.00441001,41759.0,41755.0,0.88133]
[1641745621979,0.40390322,41758.0,41755.0,0.88133]
[1641745622177,0.40390322,41758.0,41755.0,0.68133]
[1641745622582,0.4051885,41758.0,41753.0,0.059873]
[1641745622879,0.00128528,41758.0,41755.0,0.022]
[1641745623478,0.00139183,41758.0,41755.0,0.022]
[1641745623879,0.00441001,41759.0,41755.0,0.022]
[1641745624080,0.00441001,41759.0,41753.0,0.048]
[1641745624740,0.3972292,41754.0,41753.0,0.048]
[1641745625143,0.3972292,41754.0,41753.0,0.107878]
[1641745625539,0.3972292,41754.0,41753.0,0.048]
[1641745625941,0.21866131,41758.0,41753.0,0.048]
[1641745626140,0.08031001,41761.0,41753.0,0.048]
[1641745626340,0.37848373,41761.0,41753.0,0.048]
[1641745626540,0.00089831,41760.0,41753.0,0.048]
[1641745626742,0.00089831,41760.0,41753.0,0.04810573]
[1641745626941,0.059878,41759.0,41753.0,0.05010573]
[1641745627240,0.06077831,41760.0,41753.0,0.05010573]
[1641745627442,0.33370227,41758.0,41753.0,0.05010573]
[1641745627842,0.33370227,41758.0,41754.0,0.00020791]
[1641745628041,0.39358227,41758.0,41754.0,0.00020791]
[1641745628292,1.2,41755.0,41754.0,0.00020791]
[1641745628691,1.3,41755.0,41754.0,0.00020791]
[1641745628889,1.311,41755.0,41754.0,0.00020791]
[1641745629092,1.211,41755.0,41754.0,0.00020791]
[1641745629492,1.261,41755.0,41754.0,0.00020791]
[1641745629992,0.29455129,41754.0,41752.0,0.00019606]
[1641745630194,0.6640023,41754.0,41752.0,0.00019606]
[1641745630394,0.22355157,41753.0,41752.0,0.00019606]
[1641745630596,0.059898,41754.0,41752.0,0.00019606]
[1641745630793,0.3066,41755.0,41752.0,0.00019606]
[1641745630995,0.33370227,41758.0,41752.0,0.06007606]
[1641745631194,0.059887,41756.0,41751.0,0.00564705]
[1641745631926,0.45347827,41758.0,41751.0,0.00564705]
[1641745632128,0.33370227,41758.0,41751.0,0.00564705]
[1641745632626,0.33370227,41758.0,41751.0,0.00584697]
[1641745633426,0.05751909,41757.0,41751.0,0.00584697]
[1641745633926,0.05751909,41757.0,41752.0,0.00019991]
[1641745634527,0.059888,41755.0,41752.0,0.00019991]
[1641745634929,0.059888,41755.0,41752.0,0.00020037]
[1641745635430,0.054888,41755.0,41751.0,0.00551742]
[1641745635674,0.21688733,41754.0,41751.0,0.00551742]
[1641745636075,0.2743998,41753.0,41751.0,0.00551742]
[1641745636278,0.114777,41755.0,41751.0,0.00551742]
[1641745636474,0.054888,41755.0,41751.0,0.00551742]
[1641745636875,0.114776,41755.0,41751.0,0.00851742]
[1641745638083,0.26755023,41754.0,41751.0,0.00551742]
[1641745638277,0.25239103,41753.0,41751.0,0.00551742]
[1641745638978,0.25239103,41753.0,41750.0,2.487e-05]
[1641745638979,0.497282,41752.0,41750.0,2.487e-05]
[1641745639178,0.39173256,41751.0,41750.0,2.487e-05]
[1641745639425,0.29173256,41751.0,41750.0,0.00020745]
[1641745639627,0.29047147,41751.0,41750.0,0.00020745]
[1641745640026,0.059907,41752.0,41750.0,0.00020745]
[1641745640825,0.7361407,41753.0,41750.0,0.00220745]
[1641745641027,0.54221973,41752.0,41750.0,0.002]
[1641745641426,0.25037077,41753.0,41750.0,0.002]
[1641745641628,0.21866244,41754.0,41750.0,0.002]
[1641745642029,0.21876784,41754.0,41750.0,0.002]
[1641745642225,0.059907,41753.0,41747.0,0.059888]
[1641745642626,0.4078065,41753.0,41747.0,0.059888]
[1641745642826,0.4078065,41753.0,41744.0,0.119772]
[1641745643026,0.4078065,41753.0,41748.0,0.00021092]
[1641745643285,0.119785,41751.0,41748.0,0.00021092]
[1641745644184,0.119785,41751.0,41747.0,0.00021092]
[1641745644581,0.22826881,41750.0,41747.0,0.00021092]
[1641745644785,0.33116909,41748.0,41747.0,0.00021092]
[1641745644985,0.55147697,41748.0,41747.0,0.04221092]
[1641745645284,0.22030788,41748.0,41747.0,0.042]
[1641745646086,0.22030788,41748.0,41746.0,0.00021101]
[1641745646286,0.33222467,41747.0,41746.0,0.00021101]
[1641745646485,0.55137058,41747.0,41745.0,0.00021101]
[1641745646946,0.56137058,41747.0,41746.0,0.024]
[1641745647547,0.56137058,41747.0,41746.0,0.02407004]
[1641745647742,0.56259107,41747.0,41746.0,0.02407004]
[1641745648142,0.55259107,41747.0,41746.0,7.004e-05]
[1641745648545,0.55259107,41747.0,41744.0,0.00019885]
[1641745648744,0.059905,41746.0,41744.0,0.00019885]
[1641745648944,0.65180299,41745.0,41744.0,0.00019885]
[1641745649748,0.65180299,41745.0,41742.0,0.00019879]
[1641745649749,0.059915,41744.0,41742.0,0.00019879]
[1641745649944,1.07809882,41743.0,41742.0,0.00019879]
[1641745650346,1.12809882,41743.0,41742.0,0.00019879]
[1641745650547,1.35945717,41743.0,41742.0,0.00019879]
[1641745650782,1.35945717,41743.0,41740.0,0.00019881]
[1641745650983,0.059916,41742.0,41740.0,0.00019881]
[1641745651186,1.36339437,41741.0,41740.0,0.00019881]
[1641745651582,0.26339437,41741.0,41740.0,0.00019881]
[1641745652082,0.12107082,41742.0,41738.0,0.00019952]
[1641745652282,0.06115482,41742.0,41738.0,0.00019952]
[1641745652682,0.059912,41742.0,41738.0,0.00019952]
[1641745652884,0.072912,41742.0,41738.0,0.00039905]
[1641745653086,0.072912,41742.0,41738.0,0.00019953]
[1641745653484,0.132818,41742.0,41738.0,0.00019953]
[1641745653688,0.013,41742.0,41738.0,0.06009953]
[1641745654087,0.27536086,41746.0,41738.0,0.06009953]
[1641745654531,0.27536086,41746.0,41738.0,0.00019953]
[1641745654731,0.059907,41742.0,41738.0,0.00019953]
[1641745654931,0.2317687,41741.0,41738.0,0.00019953]
[1641745655131,0.2317687,41741.0,41740.0,0.00019952]
[1641745655333,0.06119535,41742.0,41740.0,0.00019952]
[1641745655531,0.27279408,41742.0,41740.0,0.00019952]
[1641745655731,1.37769115,41741.0,41740.0,0.00019952]
[1641745655932,0.73915944,41741.0,41740.0,0.00030487]
[1641745656132,0.88915944,41741.0,41740.0,0.00030487]
[1641745656531,0.65,41740.0,41739.0,0.00019948]
[1641745656732,2.44312936,41740.0,41739.0,0.00010548]
[1641745656930,2.11508131,41740.0,41739.0,0.00010548]
[1641745657131,0.88708131,41740.0,41739.0,0.00010548]
[1641745657333,0.34973131,41740.0,41732.0,0.599]
[1641745657532,0.059915,41736.0,41732.0,0.599]
[1641745658983,0.069915,41736.0,41732.0,0.599]
[1641745659383,0.41866404,41736.0,41732.0,0.599]
[1641745660285,0.40866404,41736.0,41732.0,0.599]
[1641745660681,0.40866404,41736.0,41734.0,0.00027697]
[1641745660881,0.41866404,41736.0,41734.0,0.00027697]
[1641745662131,0.059915,41736.0,41734.0,0.00027697]
[1641745662331,2.13143653,41735.0,41734.0,0.00027697]
[1641745662535,0.059915,41736.0,41734.0,0.00027697]
[1641745662932,0.009,41735.0,41734.0,0.00027697]
[1641745663732,0.00015,41735.0,41734.0,0.00027697]
[1641745664135,0.057345,41736.0,41734.0,0.00027697]
[1641745664737,0.00123447,41735.0,41734.0,0.00027697]
[1641745665878,0.00123447,41735.0,41732.0,0.59948701]
[1641745666079,0.059922,41734.0,41732.0,0.59948701]
[1641745666279,0.059922,41734.0,41732.0,0.59947487]
[1641745666578,0.21849255,41733.0,41732.0,0.59947487]
[1641745666979,0.21349255,41733.0,41732.0,0.59947487]
[1641745667382,0.067922,41734.0,41732.0,0.59927654]
[1641745668182,0.33431578,41734.0,41732.0,0.59927654]
[1641745668381,0.22239599,41733.0,41732.0,0.59927654]
[1641745668981,0.23039599,41733.0,41732.0,0.59927654]
[1641745670331,0.22239599,41733.0,41732.0,0.59927654]
[1641745670539,0.2198484,41734.0,41732.0,0.59927654]
[1641745670734,0.059922,41734.0,41732.0,0.59927654]
[1641745670936,0.008,41733.0,41732.0,0.59927654]
[1641745671132,0.008,41733.0,41732.0,0.98662654]
[1641745671935,0.0526056,41739.0,41732.0,0.98662654]
[1641745672134,0.0526056,41739.0,41732.0,0.59927654]
[1641745672535,0.059921,41736.0,41732.0,0.64727654]
[1641745672736,0.05,41742.0,41735.0,0.38735]
[1641745672935,0.009,41739.0,41736.0,0.048]
[1641745673182,0.009,41739.0,41737.0,0.65531929]
[1641745673380,0.009,41739.0,41738.0,0.80339124]
[1641745673580,0.009,41739.0,41738.0,0.85139124]
[1641745673880,0.009,41739.0,41738.0,1.10958733]
[1641745674281,0.0002072,41745.0,41744.0,0.29829788]
[1641745674882,0.008,41745.0,41744.0,0.35729788]
[1641745675082,0.00020721,41747.0,41744.0,0.62325382]
[1641745675282,0.00020721,41747.0,41745.0,0.25967617]
[1641745675483,0.00020721,41747.0,41746.0,0.75884976]
[1641745675682,0.00020721,41747.0,41746.0,0.048]
[1641745676283,0.00010574,41749.0,41746.0,0.048]
[1641745676935,0.00010574,41749.0,41746.0,0.081]
[1641745677332,0.00010574,41750.0,41746.0,0.081]
[1641745677934,0.00010574,41750.0,41746.0,0.08107004]
[1641745678136,0.00010574,41750.0,41746.0,0.10796104]
[1641745678735,3.574e-05,41750.0,41746.0,0.10796104]
[1641745678939,3.574e-05,41750.0,41746.0,0.16996104]
[1641745679137,3.574e-05,41750.0,41746.0,0.169891]
[1641745679537,0.9808,41757.0,41753.0,0.31033415]
[1641745679741,0.119777,41758.0,41753.0,0.31033415]
[1641745680239,0.51087823,41759.0,41753.0,0.35833415]
[1641745680438,0.00010961,41758.0,41754.0,0.27237817]
[1641745680683,0.00010961,41758.0,41755.0,0.048]
[1641745680884,0.00710961,41758.0,41755.0,0.048]
[1641745681884,0.007,41758.0,41755.0,0.048]
[1641745682287,0.05999061,41759.0,41755.0,0.048]
[1641745683085,0.05999061,41759.0,41755.0,0.068]
[1641745683287,0.00010961,41759.0,41755.0,0.068]
[1641745684188,0.00021503,41759.0,41755.0,0.048]
[1641745685032,0.00021503,41759.0,41755.0,0.129]
[1641745685232,0.00020891,41759.0,41755.0,0.129]
[1641745685832,0.00020891,41759.0,41757.0,0.00026707]
[1641745686033,0.00020891,41759.0,41757.0,0.04826707]
[1641745687034,0.00020891,41759.0,41757.0,0.14226707]
[1641745687441,0.0001,41761.0,41757.0,0.14226707]
[1641745687636,0.00642884,41762.0,41757.0,0.14226707]
[1641745688183,0.00642884,41762.0,41757.0,0.04826707]
[1641745688383,0.00142884,41762.0,41757.0,0.04826707]
[1641745688988,0.059883,41760.0,41757.0,0.08426707]
[1641745689589,0.00942884,41762.0,41757.0,0.0843728]
[1641745690187,0.059882,41759.0,41757.0,0.0483728]
[1641745690389,0.09592015,41763.0,41757.0,0.0483728]
[1641745690788,0.15580015,41763.0,41759.0,0.00026621]
[1641745690987,0.16480015,41763.0,41759.0,0.00026621]
[1641745691188,0.059881,41762.0,41759.0,0.00026621]
[1641745691789,0.25892035,41762.0,41759.0,0.00026621]
[1641745692043,0.35892035,41762.0,41759.0,0.00026621]
[1641745692244,0.38735,41761.0,41759.0,0.00026621]
[1641745692447,1.60065919,41760.0,41759.0,0.00026621]
[1641745692645,2.13800919,41760.0,41759.0,0.00026621]
[1641745692843,3.41600919,41760.0,41759.0,0.00026621]
[1641745693044,3.42700919,41760.0,41759.0,0.00026621]
[1641745693249,3.42700919,41760.0,41759.0,0.00033623]
[1641745693846,0.17970543,41759.0,41757.0,0.00020793]
[1641745694045,0.518153,41760.0,41757.0,0.00019606]
[1641745694046,0.011,41760.0,41757.0,0.00019606]
[1641745694245,0.50949247,41762.0,41758.0,0.048]
[1641745694846,0.31428049,41760.0,41758.0,0.048]
[1641745695248,0.32728852,41759.0,41758.0,0.048]
[1641745695446,0.67389493,41759.0,41758.0,0.048]
[1641745695692,1.1,41757.0,41750.0,0.048]
[1641745695993,0.119809,41751.0,41741.0,0.91776392]
[1641745696193,0.059905,41750.0,41742.0,0.38735]
[1641745696392,0.119809,41751.0,41742.0,0.38735]
[1641745696393,0.2904851,41749.0,41742.0,0.38735]
[1641745696593,0.059906,41747.0,41743.0,0.32548713]
[1641745696794,0.68918649,41763.0,41746.0,0.00120989]
[1641745696993,0.001,41749.0,41747.0,0.048]
[1641745697193,0.001,41749.0,41748.0,0.38735]
[1641745697393,0.001,41749.0,41747.0,0.048]
[1641745697593,0.001,41749.0,41747.0,0.107891]
[1641745698194,0.30773454,41755.0,41748.0,0.38735]
[1641745698393,0.34849244,41754.0,41747.0,0.107891]
[1641745700036,0.048,41758.0,41757.0,0.00127595]
[1641745700241,0.048,41758.0,41757.0,0.04927595]
[1641745700437,0.04812,41758.0,41757.0,0.048]
[1641745701035,0.60227864,41758.0,41757.0,0.081]
[1641745701238,1.0557474,41758.0,41757.0,0.081]
[1641745702236,1.0557474,41758.0,41757.0,0.048]
[1641745702439,1.0517474,41758.0,41757.0,0.048]
[1641745702836,1.0517474,41758.0,41755.0,0.00020958]
[1641745703041,0.059891,41757.0,41755.0,0.00020958]
[1641745703487,0.30428799,41758.0,41755.0,0.00020958]
[1641745703683,0.009,41758.0,41756.0,0.04922139]
[1641745704090,0.009,41758.0,41757.0,0.38735]
[1641745704285,0.00021286,41761.0,41757.0,0.048]
[1641745705082,0.34000901,41758.0,41757.0,0.073]
[1641745706284,0.34000901,41758.0,41757.0,0.048]
[1641745706944,0.00020686,41761.0,41757.0,0.04926386]
[1641745707141,0.00041372,41761.0,41757.0,0.07826386]
[1641745707342,0.00020686,41761.0,41757.0,0.07826386]
[1641745708246,0.00020686,41761.0,41757.0,0.04926386]
[1641745708441,0.00020686,41761.0,41757.0,0.048]
[1641745709042,0.00120686,41761.0,41757.0,0.131877]
[1641745709442,0.00141403,41761.0,41757.0,0.072]
[1641745709643,0.27932309,41761.0,41757.0,0.072]
[1641745709842,0.00120717,41761.0,41757.0,0.072]
[1641745710043,0.00120717,41761.0,41757.0,0.131877]
[1641745710242,0.00120717,41761.0,41757.0,0.107877]
[1641745710442,0.00020717,41761.0,41757.0,0.048]
[1641745710686,0.00020717,41761.0,41759.0,0.00023959]
[1641745710889,0.00020717,41761.0,41760.0,0.048]
[1641745711286,0.00020717,41761.0,41759.0,0.00146367]
[1641745711585,0.00020717,41761.0,41759.0,0.00023959]
[1641745711787,0.31520006,41762.0,41759.0,0.00023959]
[1641745712786,0.35748318,41763.0,41759.0,0.00023959]
[1641745713186,0.008,41762.0,41759.0,0.02023959]
[1641745713789,0.008,41762.0,41761.0,0.00129523]
[1641745713987,0.008,41762.0,41761.0,0.69929523]
[1641745714187,0.008,41762.0,41761.0,1.08664523]
[1641745714442,0.24947669,41771.0,41762.0,0.38735]
[1641745714639,0.24947669,41771.0,41770.0,0.00121875]
[1641745714839,0.50971673,41773.0,41770.0,0.04921875]
[1641745715439,0.07541001,41772.0,41770.0,0.048]
[1641745716442,1.03695785,41771.0,41770.0,0.048]
[1641745716643,1.42430785,41771.0,41770.0,0.048]
[1641745716841,0.55,41770.0,41761.0,0.04823873]
[1641745717041,0.00125678,41767.0,41761.0,0.00023873]
[1641745717244,0.447238,41766.0,41761.0,0.00023873]
[1641745717442,0.24933472,41765.0,41761.0,0.00023873]
[1641745717746,0.27384453,41763.0,41761.0,0.00023873]
[1641745717944,0.23949127,41762.0,41761.0,0.00023873]
[1641745718192,0.23949127,41762.0,41761.0,0.00034497]
[1641745718395,0.28949127,41762.0,41761.0,0.00034497]
[1641745718599,0.28949127,41762.0,41751.0,0.11510397]
[1641745718903,0.27844431,41757.0,41750.0,0.048]
[1641745719096,0.08379783,41762.0,41751.0,0.38735]
[1641745719295,0.08379783,41762.0,41749.0,0.39976331]
[1641745719296,0.05,41762.0,41749.0,0.39976331]
[1641745719697,0.40205817,41752.0,41749.0,0.39976331]
[1641745719900,0.40205817,41752.0,41750.0,0.38735]
[1641745720901,0.40205817,41752.0,41751.0,0.00021916]
[1641745721206,0.119782,41758.0,41752.0,0.38735]
[1641745721400,0.05989,41755.0,41751.0,0.00021916]
[1641745722735,0.05989,41755.0,41751.0,0.00042895]
[1641745722937,0.28814256,41760.0,41751.0,0.00042895]
[1641745723137,0.28814256,41760.0,41751.0,0.13118295]
[1641745723936,0.28814256,41760.0,41753.0,0.00020977]
[1641745724137,0.58285892,41760.0,41753.0,0.00020977]
[1641745724340,0.2031599,41759.0,41753.0,0.00020977]
[1641745724539,0.00123929,41757.0,41753.0,0.00020977]
[1641745724742,0.38735,41756.0,41753.0,0.00020977]
[1641745724937,0.00123663,41754.0,41753.0,0.00020977]
[1641745725140,0.2380671,41753.0,41751.0,9.893e-05]
[1641745725339,0.70517887,41752.0,41751.0,9.893e-05]
[1641745725540,1.44590675,41752.0,41751.0,9.893e-05]
[1641745725796,0.00128265,41743.0,41740.0,0.3985426]
[1641745726397,0.059914,41740.0,41736.0,0.3985426]
[1641745726595,0.059914,41740.0,41737.0,0.38735]
[1641745726794,0.119829,41740.0,41737.0,0.38735]
[1641745726995,0.119829,41740.0,41736.0,0.3985426]
[1641745727295,0.066915,41740.0,41737.0,0.028]
[1641745727495,0.007,41740.0,41738.0,0.38735]
[1641745728095,0.007,41740.0,41737.0,0.028]
[1641745728295,0.007,41740.0,41737.0,0.30291319]
[1641745728495,0.059906,41742.0,41737.0,0.00020158]
[1641745729094,0.073906,41742.0,41737.0,0.00020158]
[1641745729534,0.3011362,41742.0,41737.0,0.00020158]
[1641745729735,0.30182457,41742.0,41737.0,0.00020158]
[1641745730134,0.50164655,41742.0,41737.0,0.00020158]
[1641745730335,0.49881822,41742.0,41737.0,0.00020158]
[1641745730536,0.059913,41740.0,41737.0,0.00020165]
[1641745730738,0.059913,41740.0,41739.0,0.0002024]
[1641745730935,0.23850767,41745.0,41739.0,0.0002024]
[1641745731337,0.22893426,41746.0,41739.0,0.0002024]
[1641745731539,0.059907,41742.0,41739.0,0.0002024]
[1641745731737,0.059907,41742.0,41740.0,0.00020163]
[1641745732338,0.4868097,41746.0,41740.0,0.00020163]
[1641745732740,0.22769256,41746.0,41740.0,0.07306715]
[1641745732937,0.22769256,41746.0,41739.0,0.00040404]
[1641745732938,0.059903,41745.0,41739.0,0.00040404]
[1641745733186,0.119821,41743.0,41740.0,0.033]
[1641745733387,0.22419572,41742.0,41740.0,0.033]
[1641745733790,1.38735,41741.0,41740.0,0.033]
[1641745733990,1.48857931,41741.0,41740.0,0.033]
[1641745734192,1.58857931,41741.0,41740.0,0.033]
[1641745734388,1.58857931,41741.0,41739.0,0.00040403]
[1641745734389,0.99427045,41741.0,41739.0,0.00040403]
[1641745734588,0.99427045,41741.0,41734.0,0.3985426]
[1641745734589,0.0051686,41737.0,41734.0,0.3985426]
[1641745734789,0.119848,41738.0,41734.0,0.3985426]
[1641745734989,0.05,41737.0,41734.0,0.3985426]
[1641745735189,0.064,41737.0,41734.0,0.3985426]
[1641745735389,0.059923,41736.0,41732.0,0.00080667]
[1641745735590,0.27234099,41733.0,41732.0,0.00080667]
[1641745736089,0.27234099,41733.0,41729.0,0.07564928]
[1641745736389,0.059915,41739.0,41730.0,0.38735]
[1641745736591,0.43091473,41740.0,41729.0,0.07564928]
[1641745736791,0.33091473,41740.0,41731.0,0.07564928]
[1641745737033,0.43791473,41740.0,41731.0,0.07564928]
[1641745737233,0.43791473,41740.0,41729.0,0.15156428]
[1641745737434,0.27666823,41739.0,41729.0,0.15156428]
[1641745737632,0.059925,41734.0,41729.0,0.085915]
[1641745737832,0.27666823,41739.0,41730.0,0.38735]
[1641745738734,0.059915,41737.0,41730.0,0.38735]
[1641745738933,0.27666823,41739.0,41730.0,0.38735]
[1641745739133,0.119839,41738.0,41730.0,0.41835]
[1641745739634,0.28066823,41739.0,41732.0,0.00020891]
[1641745739832,0.34057923,41739.0,41732.0,0.00020891]
[1641745740234,0.063911,41739.0,41732.0,0.00020891]
[1641745740435,0.059911,41739.0,41732.0,0.00020891]
[1641745740681,0.059911,41739.0,41733.0,0.0002089]
[1641745741181,0.064911,41739.0,41733.0,0.0002089]
[1641745741782,0.064911,41739.0,41734.0,0.0002089]
[1641745741985,0.124827,41739.0,41734.0,0.0002089]
[1641745742383,0.119827,41739.0,41734.0,0.0002089]
[1641745743283,0.125827,41739.0,41734.0,0.0392089]
[1641745744085,0.125827,41739.0,41734.0,0.0392009]
[1641745744536,0.119827,41739.0,41734.0,0.0002009]
[1641745745040,0.119827,41739.0,41734.0,0.0004018]
[1641745745235,0.127827,41739.0,41734.0,0.0242009]
[1641745746435,0.119827,41739.0,41734.0,0.0002009]
[1641745747236,0.128827,41739.0,41734.0,0.0352009]
[1641745748482,0.119827,41739.0,41734.0,0.00020121]
[1641745749284,0.128827,41739.0,41734.0,0.00020121]
[1641745749884,0.29753571,41740.0,41734.0,0.00020121]
[1641745750687,0.059911,41739.0,41735.0,0.0002012]
[1641745750887,0.119827,41739.0,41735.0,0.0002012]
[1641745751285,0.127827,41739.0,41735.0,0.0002012]
[1641745751485,0.03711585,41740.0,41735.0,0.0002012]
[1641745751932,0.119827,41741.0,41735.0,0.27756993]
[1641745752136,0.00123729,41745.0,41736.0,0.048]
[1641745752335,0.059909,41741.0,41736.0,0.048]
[1641745752532,0.00123729,41745.0,41736.0,0.048]
[1641745752732,0.00123729,41745.0,41737.0,0.00020117]
[1641745752933,0.00123729,41745.0,41737.0,0.25258844]
[1641745753332,0.00723729,41745.0,41737.0,0.25258844]
[1641745753534,0.059909,41742.0,41737.0,0.00020117]
[1641745753835,0.059909,41742.0,41737.0,0.00040234]
[1641745754035,0.059909,41742.0,41737.0,0.00020117]
[1641745755136,0.059909,41742.0,41737.0,0.00020118]
[1641745755335,0.064909,41742.0,41737.0,0.00020118]
[1641745756395,0.059909,41742.0,41737.0,0.00020118]
[1641745757298,0.067909,41742.0,41737.0,0.00020118]
[1641745758499,0.059909,41742.0,41737.0,0.00020118]
[1641745759437,0.065909,41742.0,41737.0,0.00020118]
[1641745759836,0.065909,41742.0,41737.0,0.25140236]
[1641745760041,0.065909,41742.0,41737.0,0.00020118]
[1641745760438,0.059909,41742.0,41737.0,0.00020118]
[1641745761239,0.067909,41742.0,41737.0,0.00020118]
[1641745763043,0.008,41742.0,41737.0,0.00020118]
[1641745763289,0.004,41742.0,41737.0,0.00020118]
[1641745764492,0.11114229,41745.0,41740.0,0.23659992]
[1641745764691,0.05123729,41745.0,41740.0,0.23659992]
[1641745765092,0.5173295,41746.0,41740.0,0.23659992]
[1641745765295,0.008,41745.0,41740.0,0.23659992]
[1641745765993,0.008,41745.0,41737.0,0.00020117]
[1641745766593,0.5173295,41746.0,41738.0,0.059903]
[1641745767340,0.5273295,41746.0,41738.0,0.059903]
[1641745768243,0.059904,41745.0,41738.0,0.059903]
[1641745768643,0.00020715,41749.0,41739.0,0.25044925]
[1641745768843,0.40812559,41749.0,41739.0,0.29844925]
[1641745769043,0.40812559,41749.0,41742.0,0.059897]
[1641745769242,0.41512559,41749.0,41742.0,0.107897]
[1641745769643,0.41533275,41749.0,41747.0,0.31077265]
[1641745769842,0.4151256,41749.0,41748.0,0.048]
[1641745770244,0.00720716,41749.0,41748.0,0.048]
[1641745770449,0.00020716,41749.0,41748.0,0.36356319]
[1641745770700,0.00020716,41749.0,41748.0,0.107889]
[1641745770899,0.00020716,41751.0,41748.0,0.107889]
[1641745771199,0.00020716,41751.0,41748.0,0.38629244]
[1641745771599,0.00020716,41751.0,41749.0,0.38735]
[1641745771800,0.00020716,41751.0,41750.0,0.448]
[1641745772001,0.00020716,41752.0,41750.0,0.448]
[1641745772200,0.00020716,41752.0,41751.0,0.059886]
[1641745772402,0.00020716,41752.0,41751.0,0.107886]